Cogmind - Beta 11 X5 @@@ ROGUE MODE // 2021.06.15 @ 14:04:44 Player: rusmal Result: Self-destructed Performance ------------- Evolutions (5) 2500 Regions Visited (17) 3400 Robots Destroyed (77) 385 Value Destroyed (1990) 1990 Prototype IDs (218) 4360 Alien Tech Used (0) 0 Bonus (3607) 3607 TOTAL SCORE: 16242 Bonus ------- Follower Combat Kills 7 Met Data Miner 300 Used Data Conduit 3000 Met Imprinter 300 Cogmind --------- Core Integrity 697/1000 Matter 202/300 Energy 100/100 System Corruption 0% Temperature Cool (0) Movement Hovering (80) Location -5/Upper Caves Parts ------- > --- POWER (1) -------- (None) > --- PROPULSION (4) --- Combat Gravmag System Combat Gravmag System Combat Gravmag System Combat Gravmag System > --- UTILITY (10) ----- Experimental Optical Array Advanced Signal Interpreter Experimental Terrain Scan Processor Quantum Router > --- WEAPON (2) ------- (None) > --- INVENTORY (5) ---- Advanced Terrain Scanner Makeshift Terrain Scan Processor Grenade Launcher CR-A16's Pointy Stick Peak State ------------ > --- POWER ------------ Light Nuclear Core > --- PROPULSION ------- VTOL Module Cesium-ion Thruster Improved VTOL Module Improved VTOL Module > --- UTILITY ---------- Small Storage Unit Experimental Optical Array Advanced Sensor Array Advanced Signal Interpreter Advanced Terrain Scanner Hacking Suite Hacking Suite Advanced Hacking Suite > --- WEAPON ----------- Greatsword > --- INVENTORY -------- VTOL Module Cooled VTOL Module Improved Sensor Array Experimental Terrain Scan Processor Advanced Melee Analysis Suite Advanced Armor Integrity Analyzer Grenade Launcher CR-A16's Pointy Stick [Rating: 63] Favorites ----------- Power Ion Engine Engine Ion Engine Power Core Light Nuclear Core Propulsion Light Treads Treads Light Treads Leg Aluminum Leg Hover Unit Combat Gravmag System Flight Unit VTOL Module Utility Hacking Suite Device Improved Heat Sink Storage Large Storage Unit Processor Improved Signal Interpreter Hackware Hacking Suite Protection Hardened Light Armor Plating Weapon Light Cannon Energy Gun EM Pulse Gun Ballistic Gun High-powered Shotgun Ballistic Cannon Light Cannon Launcher Grenade Launcher Slashing Weapon Greatsword Piercing Weapon CR-A16's Pointy Stick Build | -11 -10 -10 -10 -9 -8 -7 -7 -7 -7 -6 -6 -6 -6 -6 -5 -5 -5 ------- Run | Scr Mat Min Exi Min Mat Fac Low Low Zio Pro Fac Low Low Dat Pro Fac Upp Slots Evolved 10 | . . . . . 4 2 . . . . 2 . . . . 2 . Power . | . . . . . . . . . . . . . . . . . . Propulsion 2 | . . . . . 1 1 . . . . . . . . . . . Utility 8 | . . . . . 3 1 . . . . 2 . . . . 2 . Weapon . | . . . . . . . . . . . . . . . . . . Parts Attached 114 | 6 13 5 . 1 33 13 3 . 6 6 9 1 1 4 2 11 . Power 8 | 1 3 . . . 1 1 . . . . . . 1 1 . . . Engine 7 | 1 3 . . . 1 . . . . . . . 1 1 . . . Core 1 | . . . . . . 1 . . . . . . . . . . . Reactor . | . . . . . . . . . . . . . . . . . . Propulsion 30 | 2 . 1 . 1 10 4 . . . . 2 1 . . 1 8 . Treads 14 | 2 . 1 . 1 9 . . . . . . . . . 1 . . Leg 2 | . . . . . 1 . . . . . . . . . . 1 . Wheel . | . . . . . . . . . . . . . . . . . . Hover 7 | . . . . . . . . . . . . . . . . 7 . Flight 7 | . . . . . . 4 . . . . 2 1 . . . . . Utility 46 | 1 5 . . . 13 5 1 . 6 2 7 . . 2 1 3 . Device 17 | . . . . . 3 3 1 . 2 2 4 . . . 1 1 . Storage 6 | 1 3 . . . 1 1 . . . . . . . . . . . Processor 10 | . . . . . 1 1 . . 4 . 1 . . 2 . 1 . Hackware 5 | . . . . . 2 . . . . . 2 . . . . 1 . Protection 8 | . 2 . . . 6 . . . . . . . . . . . . Artifact . | . . . . . . . . . . . . . . . . . . Weapon 30 | 2 5 4 . . 9 3 2 . . 4 . . . 1 . . . Energy Gun 4 | 1 1 . . . 2 . . . . . . . . . . . . Energy Cannon . | . . . . . . . . . . . . . . . . . . Ballistic Gun 7 | 1 . . . . 6 . . . . . . . . . . . . Ballistic Cannon 5 | . 2 2 . . 1 . . . . . . . . . . . . Launcher 7 | . 2 2 . . . . 1 . . 2 . . . . . . . Special Weapon . | . . . . . . . . . . . . . . . . . . Impact Weapon . | . . . . . . . . . . . . . . . . . . Slashing Weapon 6 | . . . . . . 3 1 . . 2 . . . . . . . Piercing Weapon 1 | . . . . . . . . . . . . . . 1 . . . Special Melee Weapon . | . . . . . . . . . . . . . . . . . . Unidentified Prototypes 7 | . . . . . 2 . . . 4 . . . . . . 1 . Parts Lost 19 | . 1 1 . 1 3 . . . . . . 1 . 10 1 . 1 Power 3 | . 1 . . . . . . . . . . . . 2 . . . Propulsion 7 | . . 1 . 1 . . . . . . . 1 . 4 . . . Utility 8 | . . . . . 2 . . . . . . . . 4 1 . 1 Weapon 1 | . . . . . 1 . . . . . . . . . . . . Highest Loss Streak 10 | . 1 1 . 1 2 . . . . . . 1 . 10 1 . 1 Average Slot Usage (%) 92 | . 99 100 100 100 94 91 92 92 92 92 92 93 93 88 29 37 52 Engine 8 | . 13 14 14 14 9 . . . . . . . 4 6 . . . Core 1 | . . . . . . 6 7 7 7 7 6 6 1 . . . . Treads 19 | . 28 28 28 28 25 1 . . . . . . . . . . . Hover 1 | . . . . . . . . . . . . . . . . 18 23 Flight 5 | . . . . . . 28 30 30 30 30 26 26 26 23 . . . Device 3 | . . . . . 4 6 7 7 6 7 12 13 13 4 4 2 5 Storage 10 | . 14 14 14 14 9 7 7 7 7 7 6 6 6 6 . . . Processor 5 | . . . . . 3 14 15 15 15 15 13 13 13 20 13 13 17 Hackware 7 | . . . . . 12 15 15 15 15 15 19 20 20 20 10 1 5 Protection 8 | . 12 14 14 14 10 . . . . . . . . . . . . Energy Gun 2 | . 6 . . . 2 . . . . . . . . . . . . Ballistic Gun 5 | . 7 . . . 13 1 . . . . . . . . . . . Ballistic Cannon 6 | . 13 15 14 14 2 . . . . . . . . . . . . Launcher 3 | . . 12 14 14 . . . . . . . . . . . . . Slashing Weapon 1 | . . . . . . 6 6 7 7 6 6 6 6 1 . . . Naked Turns . | . . . . . . . . . . . . . . . . . . Heaviest Build 43 | 11 36 36 36 36 43 42 16 16 16 16 17 17 17 16 3 1 1 Greatest Support 66 | 40 40 40 40 40 66 64 17 17 17 17 19 19 18 18 27 42 14 Greatest Overweight (x) 2 | . . . . . 1 . . . . . . . . 2 . . . Average Overweight (x) . | . . . . . . . . . . . . . . . . . . Largest Inventory Capacity 15 | 8 15 15 15 15 15 15 8 8 8 8 8 8 8 8 5 5 5 Average Capacity 12 | 7 13 15 15 15 15 8 8 8 8 8 8 8 8 7 5 5 5 Most Carried 15 | 6 15 15 14 14 15 15 8 8 8 8 8 8 8 8 5 5 4 Average Carried 11 | 3 12 14 14 13 14 7 7 8 7 7 7 7 7 6 4 4 3 Final Capacity 15 | 8 15 15 15 15 15 8 8 8 8 8 8 8 8 5 5 5 5 Final Carried 15 | 6 15 14 14 13 15 8 8 8 8 8 8 7 8 5 5 3 4 Class Distribution -------------------- 50% | Mutant 22% | Hacker-Scout 19% | Hacker-Mutant 4% | Scavenger-Mutant Dominant Class ---------------- Mutant | -10/Materials Mutant | -10/Mines Mutant | -10/Exiles Mutant | -9/Mines Hacker-Mutant | -8/Materials Hacker-Scout | -7/Factory Hacker-Scout | -7/Lower Caves Hacker-Scout | -7/Lower Caves Hacker-Scout | -7/Zion Hacker-Scout | -6/Proximity Caves Hacker-Scout | -6/Factory Hacker-Scout | -6/Lower Caves Hacker-Scout | -6/Lower Caves Hacker-Sprinter | -6/Data Miner Hacker-Scout | -5/Proximity Caves Mutant | -5/Factory Hacker-Scout | -5/Upper Caves Resources | -11 -10 -10 -10 -9 -8 -7 -7 -7 -7 -6 -6 -6 -6 -6 -5 -5 -5 ----------- Run | Scr Mat Min Exi Min Mat Fac Low Low Zio Pro Fac Low Low Dat Pro Fac Upp Matter Collected 2642 | 204 625 177 48 94 947 108 53 24 83 57 65 25 88 22 . . 22 Remotely 10 | . . . . . 10 . . . . . . . . . . . . Salvage Created 2049 | . 413 69 . 115 1272 29 . . . 49 80 . . 22 . . . Parts 139 | . 30 7 . 14 76 4 1 . . 3 3 . . 1 . . . Haulers Intercepted 8 | . 2 . . . 5 . . . . . 1 . . . . . . Recyclers Shooed 1 | . . . . . 1 . . . . . . . . . . . . Parts Field Recycled . | . . . . . . . . . . . . . . . . . . Retrieved Matter . | . . . . . . . . . . . . . . . . . . Parts Self-Destructed 4 | . . . . . . . 1 . . 2 . . . . 1 . . Prevented . | . . . . . . . . . . . . . . . . . . Kills | -11 -10 -10 -10 -9 -8 -7 -7 -7 -7 -6 -6 -6 -6 -6 -5 -5 -5 ------- Run | Scr Mat Min Exi Min Mat Fac Low Low Zio Pro Fac Low Low Dat Pro Fac Upp Combat Hostiles Destroyed 61 | . 10 5 . 11 29 . 1 . . 5 . . . . . . . Guns 30 | . 4 . . . 26 . . . . . . . . . . . . Cannons 11 | . 3 4 . 1 3 . . . . . . . . . . . . AOE 20 | . 3 1 . 10 . . 1 . . 5 . . . . . . . Classes Destroyed 10 | . 4 1 . . 4 . 1 . . . . . . . . . . Worker 1 | . . . . . 1 . . . . . . . . . . . . Hauler 8 | . 2 . . . 5 . . . . . 1 . . . . . . Operator 4 | . 3 . . . 1 . . . . . . . . . . . . Watcher 3 | . . . . . 2 1 . . . . . . . . . . . Swarmer 28 | . 3 2 . 8 10 . . . . 5 . . . . . . . Grunt 20 | . 7 2 . 3 8 . . . . . . . . . . . . Duelist 2 | . . . . . 2 . . . . . . . . . . . . Sentry 9 | . . . . . 9 . . . . . . . . . . . . Programmer 1 | . . . . . . . 1 . . . . . . . . . . Assembled 1 | . . 1 . . . . . . . . . . . . . . . Best Kill Streak 5 | . 3 2 . 4 5 1 1 . . 3 1 . . 1 . . . Combat Bots Only 4 | . 3 2 . 4 4 . 1 . . 3 . . . . . . . Max Kills in Single Turn 4 | . 2 1 . 4 2 1 1 . . 2 1 . . 1 . . . Gunslinging 1 | . . . . . 1 . . . . . . . . . . . . Exploded 4 | . 2 1 . 4 . . 1 . . 2 . . . . . . . Melee . | . . . . . . . . . . . . . . . . . . Uniques/NPCs Destroyed 1 | . . . . . . . . . . . . . . 1 . . . Data Miner (-6/Data Miner) Combat | -11 -10 -10 -10 -9 -8 -7 -7 -7 -7 -6 -6 -6 -6 -6 -5 -5 -5 -------- Run | Scr Mat Min Exi Min Mat Fac Low Low Zio Pro Fac Low Low Dat Pro Fac Upp Damage Taken 4503 | . 322 525 . 179 1246 . 85 63 . 130 64 121 . 613 677 270 208 Core 1422 | . 48 30 . 60 97 . 60 63 . 56 . 33 . 156 516 194 109 Absorbed by Shields . | . . . . . . . . . . . . . . . . . . Core Remaining (%) 63 | 100 . . . 44 82 . . . . 74 . . . . 17 . . Volleys Fired 189 | . 37 18 . 11 112 . 5 . . 6 . . . . . . . Largest 2 | . 2 2 . 1 2 . 1 . . 1 . . . . . . . Hottest 80 | . 70 70 . 35 80 . 30 . . 30 . . . . . . . Shots Fired 324 | . 71 31 . 11 200 . 5 . . 6 . . . . . . . Gun 190 | . 32 . . . 158 . . . . . . . . . . . . Cannon 107 | . 36 27 . 2 42 . . . . . . . . . . . . Launcher 27 | . 3 4 . 9 . . 5 . . 6 . . . . . . . Special . | . . . . . . . . . . . . . . . . . . Kinetic 246 | . 52 27 . 2 165 . . . . . . . . . . . . Thermal . | . . . . . . . . . . . . . . . . . . Explosive 27 | . 3 4 . 9 . . 5 . . 6 . . . . . . . Electromagnetic 51 | . 16 . . . 35 . . . . . . . . . . . . Robot Hit Streak 23 | . 6 6 . 3 23 . 4 . . 3 . . . . . . . Robot Miss Streak 4 | . 4 4 . 3 4 . 2 . . . . . . . . . . Penetration Max . | . . . . . . . . . . . . . . . . . . Secondary Targets 2 | . . . . . 2 . . . . . . . . . . . . Max Gunslinging Chain 1 | . . . . . 1 . . . . . . . . . . . . Shots Hit Robots 217 | . 36 18 . 4 145 1 3 . . 3 5 . . 2 . . . Core Hits 136 | . 22 15 . 14 67 1 3 . . 11 1 . . 2 . . . Critical Kills 1 | . . . . . 1 . . . . . . . . . . . . Critical Parts Destroyed . | . . . . . . . . . . . . . . . . . . Critical Strikes 5 | . 2 1 . . 2 . . . . . . . . . . . . Destroy 1 | . . . . . 1 . . . . . . . . . . . . Blast 4 | . 2 1 . . 1 . . . . . . . . . . . . Melee Attacks 50 | . . . . . . 10 . . . 1 32 1 . 6 . . . Impact . | . . . . . . . . . . . . . . . . . . Slashing 44 | . . . . . . 10 . . . 1 32 1 . . . . . Piercing 6 | . . . . . . . . . . . . . . 6 . . . Sneak Attacks 3 | . . . . . . . . . . 1 1 . . 1 . . . Combat Hostiles . | . . . . . . . . . . . . . . . . . . Follow-up Attacks . | . . . . . . . . . . . . . . . . . . Damage Inflicted 5595 | . 708 527 . 669 2461 34 93 . . 507 433 . . 163 . . . Guns 2180 | . 205 . . . 1975 . . . . . . . . . . . . Cannons 1108 | . 285 321 . 16 486 . . . . . . . . . . . . Explosions 1502 | . 218 206 . 653 . . 93 . . 332 . . . . . . . Melee 805 | . . . . . . 34 . . . 175 433 . . 163 . . . Ramming . | . . . . . . . . . . . . . . . . . . Kinetic 2789 | . 356 321 . 16 2096 . . . . . . . . . . . . Thermal . | . . . . . . . . . . . . . . . . . . Explosive 1502 | . 218 206 . 653 . . 93 . . 332 . . . . . . . Electromagnetic 499 | . 134 . . . 365 . . . . . . . . . . . . Impact . | . . . . . . . . . . . . . . . . . . Slashing 642 | . . . . . . 34 . . . 175 433 . . . . . . Piercing 163 | . . . . . . . . . . . . . . 163 . . . Highest Corruption 4 | . 2 2 2 2 . 2 3 3 3 . 2 2 2 2 4 . . Average Corruption 2 | . 2 2 2 2 . 2 2 3 3 . 2 2 2 2 2 . . Corruption Purged . | . . . . . . . . . . . . . . . . . . Effects 45 | . 17 8 3 5 . 1 3 2 . . 3 . 1 . 2 . . Message Errors 17 | . 5 4 1 2 . . 2 . . . . . 1 . 2 . . Heat Flow Errors 9 | . 5 2 . . . 1 . . . . 1 . . . . . . Energy Discharges 9 | . 4 1 . 1 . . 1 . . . 2 . . . . . . Data Loss (minor) 10 | . 3 1 2 2 . . . 2 . . . . . . . . . Overload Shots . | . . . . . . . . . . . . . . . . . . Overflow Damage 275 | . 16 . . 40 . . . . . 115 104 . . . . . . Projectiles . | . . . . . . . . . . . . . . . . . . Explosions 56 | . 16 . . 40 . . . . . . . . . . . . . Melee 219 | . . . . . . . . . . 115 104 . . . . . . Knockbacks 18 | . 1 8 . . 9 . . . . . . . . . . . . Impact . | . . . . . . . . . . . . . . . . . . Kinetic 15 | . 1 7 . . 7 . . . . . . . . . . . . Secondary 3 | . . 1 . . 2 . . . . . . . . . . . . Self-Inflicted Damage 58 | . 17 . . 41 . . . . . . . . . . . . . Shots 3 | . 1 . . 2 . . . . . . . . . . . . . Rammed . | . . . . . . . . . . . . . . . . . . Targets Rammed . | . . . . . . . . . . . . . . . . . . Kicked . | . . . . . . . . . . . . . . . . . . Crushed . | . . . . . . . . . . . . . . . . . . Highest Temperature 500 | . 280 282 . 15 500 204 . 1 . . 143 2 . . 11 . . Average Temperature 109 | . 75 106 . 7 184 107 . 1 . . 67 2 . . 11 . . Received Heat Transfer 1102 | . 141 130 . 24 441 . . 12 . . 21 12 . 78 162 63 18 Effects 7 | . . 1 . . 6 . . . . . . . . . . . . Shutdowns 2 | . . . . . 2 . . . . . . . . . . . . Energy Bleed 2 | . . 1 . . 1 . . . . . . . . . . . . Short Circuit 1 | . . . . . 1 . . . . . . . . . . . . Damage (minor) 2 | . . . . . 2 . . . . . . . . . . . . Siege Activations . | . . . . . . . . . . . . . . . . . . Robots Corrupted . | . . . . . . . . . . . . . . . . . . Combat Hostiles . | . . . . . . . . . . . . . . . . . . Parts Fried 5 | . . . . . 5 . . . . . . . . . . . . Impact Corruptions . | . . . . . . . . . . . . . . . . . . Robots Melted . | . . . . . . . . . . . . . . . . . . Combat Hostiles . | . . . . . . . . . . . . . . . . . . Parts Melted . | . . . . . . . . . . . . . . . . . . Heat Transferred . | . . . . . . . . . . . . . . . . . . Parts Sabotaged 2 | . . . . . . . . . . . . . . . 2 . . Parts Stolen . | . . . . . . . . . . . . . . . . . . Parts Stripped . | . . . . . . . . . . . . . . . . . . Power Chain Reactions . | . . . . . . . . . . . . . . . . . . Missiles Intercepted . | . . . . . . . . . . . . . . . . . . Alert | -11 -10 -10 -10 -9 -8 -7 -7 -7 -7 -6 -6 -6 -6 -6 -5 -5 -5 ------- Run | Scr Mat Min Exi Min Mat Fac Low Low Zio Pro Fac Low Low Dat Pro Fac Upp Peak Influence 381 | . 205 74 . 210 381 277 . . . . 134 . . . . 43 . Initial 79 | . . 14 . . 31 79 . . . . 75 . . . . 28 . Average 117 | . 88 43 . 115 186 172 . . . . 66 . . . . 41 . Maximum Alert Level 1 | . 1 . . 1 1 1 . . . . . . . . . . . Low Security (%) 76 | 100 97 100 . 55 51 55 . . . . 100 . . . . 100 . Level 1 23 | . 2 . . 44 48 44 . . . . . . . . . . . Level 2 . | . . . . . . . . . . . . . . . . . . Level 3 . | . . . . . . . . . . . . . . . . . . Level 4 . | . . . . . . . . . . . . . . . . . . Level 5 . | . . . . . . . . . . . . . . . . . . High Security . | . . . . . . . . . . . . . . . . . . Max Security . | . . . . . . . . . . . . . . . . . . Squads Dispatched 9 | . 4 . . . 1 . . . . . 2 . . . 1 1 . Investigation 1 | . 1 . . . . . . . . . . . . . . . . Extermination 1 | . . . . . . . . . . . 1 . . . . . . Reinforcement 6 | . 3 . . . 1 . . . . . 1 . . . . 1 . Assault 1 | . . . . . . . . . . . . . . . 1 . . Garrison . | . . . . . . . . . . . . . . . . . . Intercept . | . . . . . . . . . . . . . . . . . . Construction Impeded . | . . . . . . . . . . . . . . . . . . Haulers Reinforced . | . . . . . . . . . . . . . . . . . . Cargo Convoy Interrupts . | . . . . . . . . . . . . . . . . . . Stealth | -11 -10 -10 -10 -9 -8 -7 -7 -7 -7 -6 -6 -6 -6 -6 -5 -5 -5 --------- Run | Scr Mat Min Exi Min Mat Fac Low Low Zio Pro Fac Low Low Dat Pro Fac Upp Distress Signals 6 | . 2 . . . 1 1 . . . 1 1 . . . . . . Communications Jammed . | . . . . . . . . . . . . . . . . . . Distress Signals . | . . . . . . . . . . . . . . . . . . Times Spotted 175 | . 33 22 . 11 45 7 3 1 . 15 9 2 . 4 14 6 3 Peak Tracking Total 20 | . 4 20 . 4 6 6 2 1 . 10 5 2 . 4 13 4 3 Tactical Retreats 12 | . 3 . . . 1 3 1 . . . 1 1 . . 2 . . Traps | -11 -10 -10 -10 -9 -8 -7 -7 -7 -7 -6 -6 -6 -6 -6 -5 -5 -5 ------- Run | Scr Mat Min Exi Min Mat Fac Low Low Zio Pro Fac Low Low Dat Pro Fac Upp Traps Triggered 7 | . 2 . . . . 1 . . . . 1 . . . . 3 . Indirectly . | . . . . . . . . . . . . . . . . . . Trap Hack Attempts . | . . . . . . . . . . . . . . . . . . Triggered . | . . . . . . . . . . . . . . . . . . Disarmed . | . . . . . . . . . . . . . . . . . . Reprogrammed . | . . . . . . . . . . . . . . . . . . Reused . | . . . . . . . . . . . . . . . . . . Traps Extracted . | . . . . . . . . . . . . . . . . . . Installed . | . . . . . . . . . . . . . . . . . . Triggered . | . . . . . . . . . . . . . . . . . . Machines | -11 -10 -10 -10 -9 -8 -7 -7 -7 -7 -6 -6 -6 -6 -6 -5 -5 -5 ---------- Run | Scr Mat Min Exi Min Mat Fac Low Low Zio Pro Fac Low Low Dat Pro Fac Upp Machines Disabled 6 | . 3 . . 2 1 . . . . . . . . . . . . Max in Single Turn 2 | . 1 . . 2 1 . . . . . . . . . . . . Garrison Access 1 | . . . . . . . . . . . 1 . . . . . . Machines Sabotaged . | . . . . . . . . . . . . . . . . . . Garrisons Compromised . | . . . . . . . . . . . . . . . . . . Overloaded Fab Kills . | . . . . . . . . . . . . . . . . . . Fab Network Shutdowns . | . . . . . . . . . . . . . . . . . . Hacking | -11 -10 -10 -10 -9 -8 -7 -7 -7 -7 -6 -6 -6 -6 -6 -5 -5 -5 --------- Run | Scr Mat Min Exi Min Mat Fac Low Low Zio Pro Fac Low Low Dat Pro Fac Upp Machines Accessed 49 | . 6 1 1 . 12 7 . . 1 1 12 . 1 4 . 2 1 Terminals 23 | . 4 1 . . 7 3 . . . 1 5 . . . . 2 . Fabricators 3 | . . . . . . 1 . . . . 2 . . . . . . Repair Stations 4 | . 1 . . . 2 1 . . . . . . . . . . . Recycling Units 5 | . 1 . . . 1 1 . . . . 2 . . . . . . Scanalyzers 5 | . . . . . 2 1 . . . . 2 . . . . . . Garrison Access 1 | . . . . . . . . . . . 1 . . . . . . Total Hacks 151 | . 15 3 1 . 39 15 . . 6 1 38 . 7 22 . 3 1 Successful 125 | . 10 1 1 . 32 12 . . 6 1 30 . 7 22 . 2 1 Failed 25 | . 5 2 . . 7 3 . . . . 7 . . . . 1 . Catastrophic 3 | . . . . . 2 1 . . . . . . . . . . . Database Lockouts 1 | . . . . . . . . . . . 1 . . . . . . Manual 41 | . 11 3 . . 11 3 . . . . 12 . . . . 1 . Terminals 56 | . 12 3 . . 17 6 . . . 1 14 . . . . 3 . Fabricators 8 | . . . . . . 2 . . . . 6 . . . . . . Repair Stations 8 | . 2 . . . 4 2 . . . . . . . . . . . Recycling Units 8 | . 1 . . . 1 3 . . . . 3 . . . . . . Scanalyzers 32 | . . . . . 17 2 . . . . 13 . . . . . . Garrison Access 2 | . . . . . . . . . . . 2 . . . . . . Terminal Hacks 62 | . 1 . 1 . 9 5 . . 6 1 7 . 7 22 . 2 1 Record 20 | . . . 1 . . . . . . . . . 7 11 . . 1 Part Schematic 11 | . . . . . . . . . 6 . 1 . . 4 . . . Robot Schematic 4 | . . . . . . . . . . . . . . 4 . . . Prototype ID Bank 7 | . . . . . 3 . . . . . 1 . . 3 . . . Open Door 1 | . . . . . . . . . . 1 . . . . . . . Level Access Points 1 | . . . . . 1 . . . . . . . . . . . . Branch Access Points 3 | . . . . . 1 . . . . . 1 . . . . 1 . Terminal Index 1 | . . . . . . . . . . . 1 . . . . . . Fabricator Index 1 | . . . . . . . . . . . 1 . . . . . . Repair Station Index 1 | . . . . . . 1 . . . . . . . . . . . Scanalyzer Index 2 | . . . . . . 1 . . . . 1 . . . . . . Alert Level 1 | . . . . . 1 . . . . . . . . . . . . Unreport Threat 5 | . . . . . 2 2 . . . . 1 . . . . . . Patrol Status 1 | . . . . . . 1 . . . . . . . . . . . Recall Reinforcements 1 | . . . . . . . . . . . . . . . . 1 . Hauler Manifests 2 | . 1 . . . 1 . . . . . . . . . . . . Fabricator Hacks 5 | . . . . . . 1 . . . . 4 . . . . . . Load Schematic 2 | . . . . . . . . . . . 2 . . . . . . Build 3 | . . . . . . 1 . . . . 2 . . . . . . Repair Station Hacks 8 | . 2 . . . 4 2 . . . . . . . . . . . Scan Component 4 | . 1 . . . 2 1 . . . . . . . . . . . Repair 4 | . 1 . . . 2 1 . . . . . . . . . . . Recycling Unit Hacks 5 | . 1 . . . 1 2 . . . . 1 . . . . . . Report Inventory 4 | . 1 . . . 1 1 . . . . 1 . . . . . . Retrieve Components 1 | . . . . . . 1 . . . . . . . . . . . Scanalyzer 30 | . . . . . 16 2 . . . . 12 . . . . . . Insert Component 14 | . . . . . 7 1 . . . . 6 . . . . . . Analyze 16 | . . . . . 9 1 . . . . 6 . . . . . . Garrison Access Hacks 1 | . . . . . . . . . . . 1 . . . . . . Seal Access 1 | . . . . . . . . . . . 1 . . . . . . Unauthorized Hacks 14 | . 6 1 . . 2 . . . . . 5 . . . . . . Terminals 12 | . 6 1 . . 2 . . . . . 3 . . . . . . Track 2 | . . 1 . . . . . . . . 1 . . . . . . Assimilate 2 | . 2 . . . . . . . . . . . . . . . . Botnet 6 | . 3 . . . 1 . . . . . 2 . . . . . . Operators 2 | . 1 . . . 1 . . . . . . . . . . . . Fabricators 2 | . . . . . . . . . . . 2 . . . . . . Prioritize 1 | . . . . . . . . . . . 1 . . . . . . Siphon 1 | . . . . . . . . . . . 1 . . . . . . Repair Stations . | . . . . . . . . . . . . . . . . . . Recycling Units . | . . . . . . . . . . . . . . . . . . Scanalyzers . | . . . . . . . . . . . . . . . . . . Garrison Access . | . . . . . . . . . . . . . . . . . . Data Cores Recovered . | . . . . . . . . . . . . . . . . . . Used . | . . . . . . . . . . . . . . . . . . Hacking Detections 33 | . 3 1 . . 11 6 . . . 1 10 . . . . 1 . Full Trace Events 1 | . . . . . 1 . . . . . . . . . . . . Feedback Events . | . . . . . . . . . . . . . . . . . . Feedback Blocked . | . . . . . . . . . . . . . . . . . . Robot Schematics Acquired 4 | . . . . . . . . . . . . . . 4 . . . Robots Built 2 | . . . . . . 2 . . . . . . . . . . . Matter 219 | . . . . . . 219 . . . . . . . . . . . Time 116 | . . . . . . 116 . . . . . . . . . . . Total Robot Build Rating 6 | . . . . . . 6 . . . . . . . . . . . Part Schematics Acquired 23 | . . . . . 7 1 . . 6 . 5 . . 4 . . . Parts Built 2 | . . . . . . . . . . . 2 . . . . . . Matter 438 | . . . . . . . . . . . 438 . . . . . . Time 154 | . . . . . . . . . . . 154 . . . . . . Total Part Build Rating 6 | . . . . . . . . . . . 6 . . . . . . Parts Repaired 4 | . 1 . . . 2 1 . . . . . . . . . . . Time 91 | . 26 . . . 39 26 . . . . . . . . . . . Parts Recycled . | . . . . . . . . . . . . . . . . . . Recycled Matter . | . . . . . . . . . . . . . . . . . . Retrieved Matter . | . . . . . . . . . . . . . . . . . . Retrieved Components 5 | . . . . . . 5 . . . . . . . . . . . Parts Scanalyzed 12 | . . . . . 7 1 . . . . 4 . . . . . . Part Schematics Acquired 12 | . . . . . 7 1 . . . . 4 . . . . . . Parts Damaged 1 | . . . . . . 1 . . . . . . . . . . . Bothacking | -11 -10 -10 -10 -9 -8 -7 -7 -7 -7 -6 -6 -6 -6 -6 -5 -5 -5 ------------ Run | Scr Mat Min Exi Min Mat Fac Low Low Zio Pro Fac Low Low Dat Pro Fac Upp Used RIF Installer . | . . . . . . . . . . . . . . . . . . Robots Hacked . | . . . . . . . . . . . . . . . . . . Non-combat . | . . . . . . . . . . . . . . . . . . Combat . | . . . . . . . . . . . . . . . . . . Robot Hacks Applied . | . . . . . . . . . . . . . . . . . . Relay Couplers Released . | . . . . . . . . . . . . . . . . . . Robots Rewired . | . . . . . . . . . . . . . . . . . . Allies Hacked . | . . . . . . . . . . . . . . . . . . Hacks Repelled . | . . . . . . . . . . . . . . . . . . Allies | -11 -10 -10 -10 -9 -8 -7 -7 -7 -7 -6 -6 -6 -6 -6 -5 -5 -5 -------- Run | Scr Mat Min Exi Min Mat Fac Low Low Zio Pro Fac Low Low Dat Pro Fac Upp Total Allies 6 | . . 4 . . . 2 . . . . . . . . . . . Largest Group 3 | . . 3 . . . 2 . . . . . . . . . . . Highest-Rated Group 42 | . . 40 . . . 42 . . . . . . . . . . . Highest-Rated Ally 31 | . . 31 . . . 21 . . . . . . . . . . . Total Orders . | . . . . . . . . . . . . . . . . . . Ally Attacks 24 | . . 19 . . . 5 . . . . . . . . . . . Total Damage 338 | . . 192 . . . 146 . . . . . . . . . . . Kills 5 | . . 4 . . . 1 . . . . . . . . . . . Allies Corrupted . | . . . . . . . . . . . . . . . . . . Allies Melted . | . . . . . . . . . . . . . . . . . . Intel | -11 -10 -10 -10 -9 -8 -7 -7 -7 -7 -6 -6 -6 -6 -6 -5 -5 -5 ------- Run | Scr Mat Min Exi Min Mat Fac Low Low Zio Pro Fac Low Low Dat Pro Fac Upp Robot Analysis Total 116 | . . . . . . . . . . . . . . 116 . . . Derelict Logs Recovered 9 | . . 2 . 1 . . 3 1 . 1 . . . . 1 . . Drone Launches . | . . . . . . . . . . . . . . . . . . Drone Recoveries . | . . . . . . . . . . . . . . . . . . Exploration | -11 -10 -10 -10 -9 -8 -7 -7 -7 -7 -6 -6 -6 -6 -6 -5 -5 -5 ------------- Run | Scr Mat Min Exi Min Mat Fac Low Low Zio Pro Fac Low Low Dat Pro Fac Upp Turns Passed 7933 | 87 1675 915 260 597 2163 323 109 77 224 159 405 160 134 74 159 264 148 Spaces Moved 8324 | 49 912 505 162 359 1079 798 353 295 793 449 840 389 451 102 308 297 183 Core 363 | 5 . . . . . . . . . . . . . 3 307 48 . Treads 3072 | 44 912 505 162 359 1079 10 . . . . . . . . 1 . . Legs . | . . . . . . . . . . . . . . . . . . Wheels . | . . . . . . . . . . . . . . . . . . Hover 432 | . . . . . . . . . . . . . . . . 249 183 Flight 4457 | . . . . . . 788 353 295 793 449 840 389 451 99 . . . Fastest Speed 26 | 50 160 160 160 160 145 26 26 26 26 26 26 26 26 26 50 50 80 Average Speed 78 | 148 160 160 160 160 150 27 26 26 26 26 26 26 26 31 50 74 80 Slowest Speed 260 | 160 160 160 160 160 260 153 26 26 26 26 26 26 26 175 170 86 80 Overloaded Moves . | . . . . . . . . . . . . . . . . . . Propulsion Burnouts . | . . . . . . . . . . . . . . . . . . Robots Hopped 1 | . . . . . . 1 . . . . . . . . . . . Cave-ins Triggered . | . . . . . . . . . . . . . . . . . . Exploration Rate (%) 58 | 5 96 88 49 95 82 22 60 53 87 50 23 78 74 82 60 8 38 Regions Visited 17 Branch Regions 12 Pre-discovered Areas 31 | . . . 1 1 . . . 1 1 1 . . . 26 . . . Known Exits Taken 13 | . . . 1 . 1 1 1 1 1 1 1 1 1 1 1 1 . Unknown Exits Taken 4 | 1 1 1 . 1 . . . . . . . . . . . . . Scrap Searched 23 | . . 2 . 2 . . 3 1 4 1 . 3 5 . 1 . 1 Spaces Dug 46 | . . . . 20 . 2 . . . . 23 1 . . . . . Terrain Destroyed 166 | . 13 22 . 52 . 2 24 . . 29 23 1 . . . . . Melee 26 | . . . . . . 2 . . . . 23 1 . . . . . Projectile . | . . . . . . . . . . . . . . . . . . AOE 140 | . 13 22 . 52 . . 24 . . 29 . . . . . . . Terrain Rammed . | . . . . . . . . . . . . . . . . . . Walls Destroyed . | . . . . . . . . . . . . . . . . . . Machines Disabled . | . . . . . . . . . . . . . . . . . . Actions | -11 -10 -10 -10 -9 -8 -7 -7 -7 -7 -6 -6 -6 -6 -6 -5 -5 -5 --------- Run | Scr Mat Min Exi Min Mat Fac Low Low Zio Pro Fac Low Low Dat Pro Fac Upp Total 9350 | 60 1064 580 163 371 1433 888 364 294 814 482 961 446 466 132 311 337 184 Wait 515 | . 70 51 2 1 150 44 . . 1 17 71 52 13 16 . 27 . Move 8305 | 48 911 504 161 358 1078 795 352 294 792 448 839 388 450 101 307 296 183 Hop 1 | . . . . . . 1 . . . . . . . . . . . Pick Up 74 | 6 17 1 . . 25 6 1 . 5 . 6 2 1 1 1 1 1 Fast Attach 46 | 6 5 . . . 11 3 1 . 5 2 2 . 1 . 1 9 . Attach 30 | . 1 1 . 1 8 8 1 . . 2 2 1 . 2 1 2 . Detach 17 | . 3 . . . 1 5 1 . 4 2 . . . 1 . . . Swap 38 | . 7 4 . . 14 2 1 . 1 2 5 . . 2 . . . Drop 85 | . 13 1 . . 34 14 2 . 6 2 4 2 1 3 1 2 . Fire 189 | . 37 18 . 11 112 . 5 . . 6 . . . . . . . Melee 50 | . . . . . . 10 . . . 1 32 1 . 6 . . . Ram . | . . . . . . . . . . . . . . . . . . Kick . | . . . . . . . . . . . . . . . . . . Crush . | . . . . . . . . . . . . . . . . . . Escape Stasis . | . . . . . . . . . . . . . . . . . . Rewire . | . . . . . . . . . . . . . . . . . . Trap . | . . . . . . . . . . . . . . . . . . Miscellaneous . | . . . . . . . . . . . . . . . . . . Route ------- -11/Scrapyard -10/Materials (discovered 4 exits: [*Mat x3] / *Min) -10/Mines (discovered 3 exits: [*Mat x2] / *Exi) -10/Exiles (discovered 2 exits: *Min x2) -9/Mines (discovered 2 exits: *Mat x2) -8/Materials (discovered 3 exits: *Fac x3) -7/Factory (discovered 2 exits: *Fac / *Low) -7/Lower Caves -7/Lower Caves -7/Zion -6/Proximity Caves -6/Factory (discovered 5 exits: *Fac / *Low x2 / *Ext x2) -6/Lower Caves -6/Lower Caves -6/Data Miner -5/Proximity Caves -5/Factory (discovered 3 exits: *Fac / *Upp x2) -5/Upper Caves History --------- Turn | Location | Event 3 | -11/Scrapyard | Discovered new exit (range 15) 88 | -11/Scrapyard | Entered Materials 278 | -10/Materials | Repaired Lgt. Ion Engine 318 | -10/Materials | Build established: Mutant 457 | -10/Materials | Discovered new exit (range 13) 895 | -10/Materials | Discovered new exit (range 3) 1016 | -10/Materials | Discovered new exit (range 6) 1054 | -10/Materials | Discovered new exit (range 10) 1763 | -10/Materials | Entered Mines 1773 | -10/Mines | Met a Derelict bent on vengeance 1864 | -10/Mines | Learned 4 Materials zone layouts 1870 | -10/Mines | Discovered new exit (range 8) 2131 | -10/Mines | Found a hidden stash of uninstalled traps 2165 | -10/Mines | Discovered new exit (range 6) 2181 | -10/Mines | Received a Mining Laser from a helpful Derelict 2580 | -10/Mines | Assisted by bots powering up and referring to "LRC-V3" 2658 | -10/Mines | Assembled infested the area 2672 | -10/Mines | Deemed a non-threat by the Exiles lab entrance 2672 | -10/Mines | Discovered new exit (range 5) 2678 | -10/Mines | Entered Exiles 2679 | -10/Exiles | Identified exit to Mines 2720 | -10/Exiles | Met 8R-AWN 2747 | -10/Exiles | Met EX-HEX 2810 | -10/Exiles | Met EX-DEC 2821 | -10/Exiles | Learned location of Zion (-7) 2938 | -10/Exiles | Entered Mines 3361 | -9/Mines | Learned location of Storage (-7) 3365 | -9/Mines | Discovered new exit (range 9) 3503 | -9/Mines | Discovered new exit (range 5) 3504 | -9/Mines | Core integrity fell below 50% 3512 | -9/Mines | Learned Materials trap positions 3535 | -9/Mines | Entered Materials 3535 | -8/Materials | Evolved 4 slots: Propulsion x1, Utility x3 3536 | -8/Materials | Identified exit to Factory 3537 | -8/Materials | Loaded intel: 18 trap records 4031 | -8/Materials | Repaired Lgt. Treads 4156 | -8/Materials | Build established: Scavenger-Mutant 4481 | -8/Materials | Build established: Hacker-Mutant 4791 | -8/Materials | Repaired Grenade Launcher 5698 | -8/Materials | Entered Factory 5698 | -7/Factory | Evolved 2 slots: Propulsion x1, Utility x1 5876 | -7/Factory | Discovered new exit (range 3) 5877 | -7/Factory | Identified exit to Factory 5920 | -7/Factory | Repaired Broken Imp. Terrain Scanner 5941 | -7/Factory | Discovered new exit (range 9) 5943 | -7/Factory | Identified exit to Lower Caves 5962 | -7/Factory | Fabricated H-55 Commando? 6021 | -7/Factory | Entered Lower Caves 6039 | -7/Lower Caves | Learned Factory garrison access intel 6053 | -7/Lower Caves | Learned Factory garrison access intel 6080 | -7/Lower Caves | Build established: Hacker-Scout 6100 | -7/Lower Caves | Attracted the attention of an 0b10 checkpoint 6114 | -7/Lower Caves | Discovered new exit (range 14) 6119 | -7/Lower Caves | Encountered a Warlord checkpoint 6124 | -7/Lower Caves | Learned 4 Factory zone layouts 6129 | -7/Lower Caves | Identified exit to Lower Caves 6130 | -7/Lower Caves | Entered another Lower Caves area 6195 | -7/Lower Caves | Spotted B-75 Beast 6205 | -7/Lower Caves | Discovered new exit (range 5) 6207 | -7/Lower Caves | Identified exit to Zion 6207 | -7/Lower Caves | Entered Zion 6222 | -7/Zion | Discovered new exit (range 13) 6235 | -7/Zion | Found CR-A16's Pointy Stick 6242 | -7/Zion | System corruption cleaned by Quarantine Array 6256 | -7/Zion | Found Prototype Processor 6256 | -7/Zion | Identified Exp. Target Analyzer 6259 | -7/Zion | Found Prototype Processor 6259 | -7/Zion | Identified Exp. Melee Analysis Suite 6263 | -7/Zion | Found Prototype Processor 6263 | -7/Zion | Identified Exp. Terrain Scan Processor 6266 | -7/Zion | Found Exp. Terrain Scan Processor 6329 | -7/Zion | Acquired unknown access codes intercepted by a Zionite 6352 | -7/Zion | Learned location of Warlord (-4) 6430 | -7/Zion | Identified exit to Proximity Caves 6431 | -7/Zion | Entered Proximity Caves 6572 | -6/Proximity Caves | Snuck into a huge 0b10 base via the rear entrance 6581 | -6/Proximity Caves | Discovered exit to Factory (range 6) 6585 | -6/Proximity Caves | Derelicts attacked a huge 0b10 base 6590 | -6/Proximity Caves | Entered Factory 6590 | -6/Factory | Evolved 2 slots: Utility x2 6591 | -6/Factory | Identified exit to Lower Caves 6592 | -6/Factory | Loaded intel: 4 garrison access locations 6597 | -6/Factory | Spotted B-75 Beast 6628 | -6/Factory | Identified exit to Extension 6818 | -6/Factory | Central database locked down 6900 | -6/Factory | Fabricated Imp. VTOL Module? 6912 | -6/Factory | Discovered new exit (range 20) 6973 | -6/Factory | Fabricated Imp. VTOL Module (x1) 6995 | -6/Factory | Entered Lower Caves 7069 | -6/Lower Caves | Spotted B-75 Beast 7099 | -6/Lower Caves | Attracted the attention of an 0b10 checkpoint 7114 | -6/Lower Caves | Encountered a Warlord checkpoint 7130 | -6/Lower Caves | Discovered new exit (range 9) 7134 | -6/Lower Caves | Identified exit to Lower Caves 7155 | -6/Lower Caves | Entered another Lower Caves area 7161 | -6/Lower Caves | Encountered a Warlord checkpoint 7182 | -6/Lower Caves | Learned Research stockpile data 7182 | -6/Lower Caves | Learned Research security intel 7262 | -6/Lower Caves | Discovered new exit (range 5) 7264 | -6/Lower Caves | Identified exit to Data Miner 7289 | -6/Lower Caves | Entered Data Miner 7289 | -6/Data Miner | Discovered new exit (range 6) 7293 | -6/Data Miner | Met Data Miner 7300 | -6/Data Miner | Learned location of Section 7 (-2) 7300 | -6/Data Miner | Acquired the access code to Warlord's prototype stash 7304 | -6/Data Miner | Received God Mode back door access code from Data Miner 7314 | -6/Data Miner | Destroyed Data Miner 7317 | -6/Data Miner | Found Prototype Hackware 7318 | -6/Data Miner | Interfaced with the Data Conduit 7363 | -6/Data Miner | Identified exit to Proximity Caves 7363 | -6/Data Miner | Entered Proximity Caves 7393 | -5/Proximity Caves | Lost 10 parts (2p4n4u) 7417 | -5/Proximity Caves | Learned Factory stockpile data 7464 | -5/Proximity Caves | Attracted the attention of an 0b10 outpost 7496 | -5/Proximity Caves | Core integrity fell below 50% 7519 | -5/Proximity Caves | Discovered new exit (range 6) 7520 | -5/Proximity Caves | Core integrity fell below 20% 7522 | -5/Proximity Caves | Identified exit to Factory 7522 | -5/Proximity Caves | Entered Factory 7522 | -5/Factory | Evolved 2 slots: Utility x2 7524 | -5/Factory | Loaded intel: 227 machine locations 7525 | -5/Factory | Loaded intel: 4 garrison access locations 7568 | -5/Factory | Identified exit to Upper Caves 7655 | -5/Factory | Discovered new exit (range 11) 7665 | -5/Factory | Identified exit to Factory 7770 | -5/Factory | Identified Quantum Router 7786 | -5/Factory | Entered Upper Caves 7869 | -5/Upper Caves | Attracted the attention of an 0b10 checkpoint 7934 | -5/Upper Caves | Self-destructed Last Messages --------------- Recalled reinforcement squad 7NM417TV51. LOCATION=UPPER CAVES GOAL=ESCAPE 07807_ Connecting with WAR.Sys... >>Record "Event 558853289508" We've decided to leave befo... too late. 07817_ Searching scrap... 07817_ Found Variable Charge Gun. 07817_ Found Mak. Terrain Scan Processor. 07817_ Found Recoil Nullifier. 07817_ Found 22 Matter. 07818_ Acquired 22 matter. 07819_ Acquired Mak. Terrain Scan Processor. 07868_ Penetrated by Slug. 07869_ Y-64 Sentinel: "INTERCEPTING UNREGISTERED DERELICT." 07873_ Penetrated by Slug. 07882_ Slug penetrates Wall. 07885_ Slug penetrates Earth. 07887_ Penetrated by Slug. 07934_ Imp. Terrain Scanner destroyed. Map ----- +----------------------------------------------------+ | ?????????????????????????????????????????????????? | | ?????????????????????????????????????????????????? | | ?????????????????????????????????????????????????? | | ?????????????????????????????????????????????????? | | ?????????????????????????????????????????????????? | | ?????????????????????????????????????????????????? | | ?????????????????????????????????????????????????? | | ?????????????????????????????????????????????????? | | ?????????????????????????????????????????????????? | | ??????????????????????????????##?????????????????? | | ??????????????#?????????? ?? ##????????????????? | | ??????????????# ??#?#???????? ?????????????????? | | ??????????????# #????? ????? ?????????????????? | | ??????????????# ##???????? ? ?????????????????? | | ?????????????## ##?# ???? ????? ????????????? | | ?????????????# ?#??##?? ###????????????????? | | ?????????????# ##?##?# ?????????????????? | | ??????????????# ?#?### ? ?????? ??????????? | | ??????????#####p #?#??#? ?? ??????????????? | | ??????????# #?### ?#?? ??????????????? | | ??????????? #?#?# ###??? ?? ??????????? | | ?????????????? p ##### ##?? ?? ??????????? | | ???????????????## #??#????????????????? | | ??????????## ### ### ?#? ?????????? | | ???????????# ## ?? #??#?????????? | | ??????????##? ## @ ###? ? ????#?????????? | | ??????????#### ###### #### ???##?????????? | | ????????????##?######## ##?## ??## ????????? | | ?????????####???####### #####?#?##??#?????????? | | ??????????#?##?##?#??# ########### ##????????? | | ????????#????#######?# ####### $ ##????????? | | ??????#???############ ###?# #?????????? | | ???????###?########### ##### ##?#?????????? | | ????????####?######?# ###### ###??????????? | | ???????#?##?####?#?## ###?## ###??????????? | | ????????############## ##### ##???????????? | | ???????#####??######## #######?#?????????? | | ???????######?####### ##########?????????? | | ???????##?#?####?#### ######?#####???????? | | ????????#?###?##?#### ########??#??#????? | | ????????#??####?###### #######?###?#?????? | | ????????###?##?###?#### ###########? ?###? | | ????????########??##### ########## ?###? | | ???????????#?###?###### ### ### ? ?##?# | | ?????????#?##?####?#### ### ?##?# | | ????????#?????#?###### #### ## ###?# | | ??????????###?####### #### ###### | | ????????????######### ##?## ## ######? | | ??????????###?####### ##### ## ####### | | ???????????#??############# ### ####### | +----------------------------------------------------+ Best States ------------- Heat Dissipation 45 Energy Generation 15 Energy Capacity 280 Matter Stores 326 Matter Capacity 400 Sight Range 23 Robot Scan Range 16 Terrain Scan Range 20 Terrain Scan Density 1010 Armor Coverage 300 Evasion (%) 64 Melee Accuracy 12 Armor Integrity Analysis 40 Recoil Reduction 3 Offensive Hacking 34 Defensive Hacking 25 Item Schematics ----------------- Hacking Suite | -8/Materials | Scanalyzed Grenade Launcher | -8/Materials | Scanalyzed Imp. Signal Interpreter | -8/Materials | Scanalyzed VTOL Module | -8/Materials | Scanalyzed Terrain Scan Processor | -8/Materials | Scanalyzed Cesium-ion Thruster | -8/Materials | Scanalyzed Imp. Flight Unit | -8/Materials | Scanalyzed Imp. Terrain Scanner | -7/Factory | Scanalyzed Beamcaster | -7/Zion | Free Riot Gun | -7/Zion | Free Battle Rifle | -7/Zion | Free Slug Cannon | -7/Zion | Free Flamer | -7/Zion | Free Ripper | -7/Zion | Free Adv. Hacking Suite | -6/Factory | Scanalyzed Adv. Sensor Array | -6/Factory | Scanalyzed Adv. Signal Interpreter | -6/Factory | Scanalyzed Exp. Terrain Scan Processor | -6/Factory | Scanalyzed Imp. VTOL Module | -6/Factory | Hacked Combat Drone Bay | -6/Data Miner | Free Lgt. Regenerative Plating | -6/Data Miner | Free Exp. Flexi-carbon Leg | -6/Data Miner | Free Exp. Cesium-ion Thruster | -6/Data Miner | Free Robot Schematics ------------------ S-27 Virus | -6/Data Miner | Free G-50 Soldier | -6/Data Miner | Free P-70 Sage | -6/Data Miner | Free I-36 Angel | -6/Data Miner | Free Fabricated ------------ H-55 Commando | x2 | -7/Factory | Preloaded Imp. VTOL Module | x1 | -6/Factory Imp. VTOL Module | x1 | -6/Factory Alien Tech Used ----------------- None Achievements -------------- Unlimited Data Challenges ------------ None Game ------ Seed ShadeReactionNeutralizer Manual? 0 Play Time 01:33:44 Cumulative 71.7 hours Start 2021.06.10 @ 21:05:38 End 2021.06.15 @ 14:04:44 Sessions 2 Manual Loads 0 Difficulty Rogue Special Mode None Game No. 64 Rogue 64 Adventurer 0 Explorer 0 Win Type - Total 2 Types 1/0/1/0/0/0/0/0/0 Lore% 52 Gallery% 55 Achievement% 48 Wizard Run 0 Options --------- ASCII 1 Keyboard 1 Movement Numpad Keybinds 0 Fullscreen 2 Font 18/SmallcapsGlow Map View 76x50 Tactical HUD 1 Map Filters NONE Filters NONE Steam 1 RUN: 2186d680-aa2a-410d-a053-9f2ab89f6292